bitfinex/quotes_SOLUSD_20241115
["timestamp","ask_amount","ask_price","bid_price","bid_amount"]
[1731647567053,0.12549,206.33,206.32,59.85137227]
[1731647567260,0.12549,206.33,206.32,64.82366227]
[1731647568433,0.12549,206.33,206.32,64.69817227]
[1731647569664,0.12549,206.33,206.32,65.02271777]
[1731647570652,0.12549,206.33,206.32,45.02271777]
[1731647572137,0.12549,206.33,206.32,0.1990555]
[1731647572346,23.57906227,206.33,206.32,0.1990555]
[1731647572643,47.35594627,206.33,206.32,0.1990555]
[1731647573353,0.12549,206.33,206.32,0.1990555]
[1731647575853,23.57906227,206.33,206.32,0.1990555]
[1731647576061,0.12549,206.33,206.32,0.1990555]
[1731647577356,0.12549,206.33,206.32,23.65262777]
[1731647577757,0.12549,206.33,206.32,0.1990555]
[1731647578865,47.35594627,206.33,206.32,0.1990555]
[1731647581051,47.45594627,206.33,206.32,0.1990555]
[1731647582274,47.45594627,206.33,206.17,12.1255]
[1731647582275,23.776884,206.27,206.17,40.42927227]
[1731647582475,23.776884,206.27,206.21,23.45357227]
[1731647583075,47.23045627,206.27,206.2,28.30307227]
[1731647583368,47.23045627,206.24,206.17,35.57907227]
[1731647583773,47.23045627,206.26,206.19,23.45357227]
[1731647585271,47.23045627,206.26,206.18,28.30337227]
[1731647585567,23.45357227,206.25,206.18,28.30337227]
[1731647585751,23.776884,206.23,206.17,12.1255]
[1731647585959,23.776884,206.24,206.18,23.45357227]
[1731647586265,52.07875627,206.26,206.19,23.45357227]
[1731647587059,23.45357227,206.25,206.18,28.30347227]
[1731647587565,23.45357227,206.26,206.19,23.45357227]
[1731647587772,47.23045627,206.26,206.19,23.45357227]
[1731647588271,23.776884,206.27,206.21,23.45357227]
[1731647588568,23.45357227,206.31,206.24,23.45357227]
[1731647589067,0.12549,206.32,206.25,23.45357227]
[1731647589393,0.12549,206.32,206.29,23.45357227]
[1731647589671,0.12549,206.32,206.27,23.45357227]
[1731647590060,23.57906227,206.32,206.25,23.45357227]
[1731647590367,0.12549,206.32,206.28,23.45357227]
[1731647590750,0.12549,206.32,206.27,23.45357227]
[1731647590970,0.12549,206.32,206.28,28.30127227]
[1731647591151,0.12549,206.32,206.28,4.8477]
[1731647591353,23.45357227,206.29,206.22,35.57597227]
[1731647591579,0.1,206.31,206.2,4.8494]
[1731647591874,23.776884,206.31,206.2,16.9735]
[1731647592071,23.45357227,206.26,206.2,16.9735]
[1731647592247,23.45357227,206.27,206.2,40.42707227]
[1731647592452,23.45357227,206.26,206.2,16.9735]
[1731647592753,23.45357227,206.27,206.2,40.42707227]
[1731647592950,28.30167227,206.27,206.2,35.57767227]
[1731647593160,23.45357227,206.25,206.2,12.1241]
[1731647593357,23.45357227,206.26,206.2,12.1241]
[1731647593562,23.45357227,206.27,206.2,40.42727227]
[1731647594574,23.45357227,206.29,206.22,23.45357227]
[1731647594774,23.45357227,206.31,206.24,23.45357227]
[1731647594955,4.8471,206.31,206.22,23.45357227]
[1731647595278,23.45357227,206.28,206.22,23.45357227]
[1731647595463,23.45357227,206.29,206.22,23.45357227]
[1731647595775,23.45357227,206.25,206.18,23.45357227]
[1731647595965,23.45357227,206.24,206.18,4.85]
[1731647596480,23.45357227,206.25,206.17,23.45357227]
[1731647596863,23.45357227,206.25,206.18,28.30367227]
[1731647598480,23.45357227,206.26,206.19,23.45357227]
[1731647598677,29.49427227,206.29,206.22,23.45357227]
[1731647598854,23.45357227,206.28,206.21,23.45357227]
[1731647599060,23.45357227,206.26,206.19,23.45357227]
[1731647599790,23.45357227,206.25,206.18,40.42897227]
[1731647600683,28.30207227,206.25,206.18,40.42897227]
[1731647601078,23.45357227,206.24,206.18,40.42897227]
[1731647602581,23.45357227,206.25,206.18,40.42897227]
[1731647603160,4.8482,206.27,206.18,40.42897227]
[1731647603161,23.45357227,206.26,206.19,23.45357227]
[1731647603978,28.30187227,206.26,206.19,23.45357227]
[1731647604522,29.49427227,206.29,206.22,23.45357227]
[1731647604670,23.45357227,206.3,206.23,23.45357227]
[1731647605181,23.45357227,206.29,206.22,23.45357227]
[1731647605571,23.45357227,206.28,206.22,4.8491]
[1731647606267,23.45357227,206.25,206.19,12.1247]
[1731647606467,23.45357227,206.24,206.19,12.1247]
[1731647607775,23.45357227,206.25,206.19,12.1247]
[1731647608070,23.45357227,206.27,206.2,23.45357227]
[1731647608286,4.847,206.31,206.21,23.45357227]
[1731647608287,23.45357227,206.28,206.21,23.45357227]
[1731647608692,23.45357227,206.27,206.2,23.45357227]
[1731647609579,23.45357227,206.27,206.2,28.30297227]
[1731647610175,23.45357227,206.27,206.2,40.42707227]
[1731647610371,20.0,206.25,206.14,0.4887364]
[1731647610597,23.45357227,206.19,206.14,5.3396364]
[1731647610967,23.45357227,206.16,206.14,0.4887364]
[1731647611379,23.45357227,206.15,206.14,0.4887364]
[1731647611697,67.23045627,206.15,206.14,0.4887364]
[1731647611898,67.23045627,206.15,206.04,16.3438]
[1731647612097,23.45357227,206.08,206.04,16.3438]
[1731647615400,23.45357227,206.09,206.04,21.1971]
[1731647615607,23.45357227,206.08,206.04,21.1971]
[1731647616504,23.45357227,206.08,206.04,4.8533]
[1731647617004,4.8519,206.11,206.02,35.58777227]
[1731647617005,23.45357227,206.05,206.02,12.1342]
[1731647617199,4.8521,206.1,205.98,4.8547]
[1731647617200,23.45357227,206.03,205.98,4.8547]
[1731647617406,23.45357227,206.0,205.97,20.95419722]
[1731647618495,23.45357227,206.03,205.97,25.80919722]
[1731647618688,23.45357227,206.03,205.97,49.26276949]
[1731647619705,166.4526,206.08,206.0,23.45357227]
[1731647619706,23.45357227,206.07,206.0,23.45357227]
[1731647619905,185.05357227,206.08,206.0,23.45357227]
[1731647620094,23.45357227,206.08,206.01,23.45357227]
[1731647620607,23.45357227,206.08,206.0,23.57906227]
[1731647620796,4.8519,206.11,206.02,23.45357227]
[1731647620797,23.45357227,206.09,206.02,23.45357227]
[1731647621302,23.45357227,206.07,206.01,23.45357227]
[1731647621503,23.45357227,206.04,205.99,12.1365]
[1731647621709,23.45357227,206.05,205.99,40.44467227]
[1731647622215,23.45357227,206.04,205.99,16.9911]
[1731647622387,23.45357227,206.05,205.99,16.9911]
[1731647623320,23.45357227,206.04,205.99,16.9911]
[1731647624791,23.45357227,206.01,205.97,8.81699722]
[1731647625107,23.45357227,205.99,205.97,8.81699722]
[1731647625316,23.45357227,205.98,205.93,0.4887364]
[1731647625486,23.65357227,206.04,205.93,0.4887364]
[1731647625487,23.45357227,205.94,205.93,0.4887364]
[1731647626190,90.78402854,205.94,205.93,0.4887364]
[1731647626719,95.73972854,205.94,205.93,0.4887364]
[1731647626902,125.73972854,205.94,205.93,0.4887364]
[1731647627419,0.2,205.92,205.79,28.3901]
[1731647627587,23.45357227,205.84,205.79,33.2494]
[1731647628213,23.45357227,205.82,205.79,12.1479]
[1731647628392,23.45357227,205.83,205.79,12.1479]
[1731647628792,23.45357227,205.82,205.77,4.8596]
[1731647628990,23.45357227,205.81,205.75,4.8601]
[1731647629191,23.45357227,205.8,205.75,4.8601]
[1731647629714,23.45357227,205.85,205.78,23.45357227]
[1731647629912,23.45357227,205.9,205.83,23.45357227]
[1731647630097,23.45357227,205.91,205.84,23.45357227]
[1731647630522,26.6158,205.93,205.83,23.45357227]
[1731647630523,23.45357227,205.9,205.83,23.45357227]
[1731647631018,23.45357227,205.9,205.85,17.0026]
[1731647631312,23.45357227,205.9,205.86,0.12549]
[1731647631530,30.0,205.94,205.87,23.45357227]
[1731647631531,23.45357227,205.94,205.87,23.45357227]
[1731647632215,23.45357227,205.95,205.88,23.45357227]
[1731647632395,23.45357227,205.93,205.86,23.57906227]
[1731647632902,23.45357227,205.94,205.87,23.45357227]
[1731647633413,23.45357227,205.91,205.86,4.8575]
[1731647633796,23.45357227,205.88,205.85,12.1447]
[1731647634319,23.45357227,205.86,205.82,4.8584]
[1731647634612,23.45357227,205.87,205.82,4.8584]
[1731647635204,23.45357227,205.86,205.82,4.8584]
[1731647635609,23.45357227,205.89,205.82,28.31197227]
[1731647635799,23.45357227,205.88,205.82,4.8584]
[1731647636197,23.45357227,205.87,205.82,4.8584]
[1731647637311,0.1,205.93,205.82,4.8584]
[1731647637312,23.45357227,205.89,205.82,4.8584]
[1731647638018,23.45357227,205.89,205.82,28.31197227]
[1731647638517,23.45357227,205.88,205.82,4.8584]
[1731647638828,23.45357227,205.91,205.84,0.12549]
[1731647639117,23.45357227,205.91,205.85,17.0026]
[1731647639327,23.45357227,205.93,205.86,23.45357227]
[1731647639616,23.45357227,205.96,205.88,23.45357227]
[1731647639923,23.45357227,205.96,205.89,23.45357227]
[1731647640106,23.45357227,205.96,205.88,23.45357227]
[1731647640622,23.45357227,205.96,205.89,23.45357227]
[1731647640830,23.45357227,205.99,205.92,23.45357227]
[1731647641196,23.45357227,206.02,205.95,23.45357227]
[1731647641396,23.45357227,205.98,205.93,16.996]
[1731647641609,23.45357227,205.97,205.93,16.996]
[1731647641794,23.45357227,205.99,205.93,16.996]
[1731647642114,23.45357227,206.01,205.94,23.45357227]
[1731647642323,23.45357227,206.02,205.95,23.45357227]
[1731647642511,23.45357227,206.03,205.96,23.45357227]
[1731647642717,23.45357227,206.02,205.95,23.45357227]
[1731647642893,23.45357227,206.03,205.95,23.45357227]
[1731647643294,167.803,206.09,205.97,23.45357227]
[1731647643505,23.45357227,206.04,205.97,23.45357227]
[1731647643707,23.45357227,206.03,205.97,0.12549]
[1731647643893,23.45357227,206.06,205.99,23.45357227]
[1731647644098,23.45357227,206.07,206.0,23.45357227]
[1731647644309,23.45357227,206.08,206.01,23.45357227]
[1731647644818,23.45357227,206.09,206.02,23.45357227]
[1731647644996,11.5032,206.14,205.99,20.0]
[1731647644997,23.45357227,206.1,205.99,20.0]
[1731647645198,23.45357227,206.16,206.09,23.45357227]
[1731647645425,168.252,206.19,206.11,23.45357227]
[1731647645426,23.45357227,206.18,206.11,23.45357227]
[1731647645714,8.75885511,206.21,206.13,23.45357227]
[1731647645919,4.8492,206.22,206.1,16.982]
[1731647646122,23.45357227,206.18,206.11,23.45357227]
[1731647646322,23.45357227,206.19,206.12,23.45357227]
[1731647646823,161.6,206.24,206.11,28.43066227]
[1731647646824,23.45357227,206.18,206.11,28.43066227]
[1731647647126,23.45357227,206.18,206.11,40.56006227]
[1731647647528,23.45357227,206.19,206.12,23.45357227]
[1731647648015,23.45357227,206.21,206.14,23.45357227]
[1731647648203,23.45357227,206.23,206.16,23.45357227]
[1731647648521,23.45357227,206.21,206.14,23.45357227]
[1731647648818,23.45357227,206.21,206.15,4.8508]
[1731647649020,23.45357227,206.22,206.15,40.43137227]
[1731647649196,23.45357227,206.23,206.16,23.45357227]
[1731647650026,23.45357227,206.23,206.16,40.43047227]
[1731647650319,23.45357227,206.25,206.18,23.45357227]
[1731647650622,23.45357227,206.23,206.16,40.43047227]
[1731647650925,23.45357227,206.24,206.18,23.45357227]
[1731647651094,23.45357227,206.25,206.18,23.45357227]
[1731647651301,23.45357227,206.23,206.16,40.43047227]
[1731647652411,0.1,206.27,206.13,23.45357227]
[1731647652606,23.45357227,206.15,206.11,16.981]
[1731647652922,23.45357227,206.18,206.11,16.981]
[1731647653113,23.776884,206.23,206.11,16.981]
[1731647653323,23.776884,206.24,206.11,16.981]
[1731647653713,4.8489,206.23,206.11,16.981]
[1731647654110,23.776884,206.22,206.11,16.981]
[1731647654314,23.45357227,206.17,206.11,16.981]
[1731647655224,23.45357227,206.16,206.11,16.981]
[1731647655405,23.45357227,206.16,206.11,12.1293]
[1731647656326,23.45357227,206.18,206.11,40.43457227]
[1731647657519,4.8495,206.21,206.11,16.981]
[1731647657520,23.45357227,206.16,206.11,16.981]
[1731647658842,23.45357227,206.18,206.11,40.43457227]
[1731647659836,23.45357227,206.21,206.14,23.45357227]
[1731647660008,185.05357227,206.24,206.17,23.45357227]
[1731647660208,23.45357227,206.28,206.21,23.45357227]
[1731647660423,0.12549,206.32,206.24,23.45357227]
[1731647660609,23.45357227,206.31,206.24,23.45357227]
[1731647660807,4.97239,206.32,206.18,15.4359]
[1731647661009,23.45357227,206.27,206.18,15.4359]
[1731647661210,23.45357227,206.28,206.21,23.45357227]
[1731647661925,23.45357227,206.28,206.21,28.30287227]
[1731647662327,23.45357227,206.29,206.22,23.45357227]
[1731647662631,23.45357227,206.3,206.23,23.45357227]
[1731647663020,23.45357227,206.29,206.22,23.45357227]
[1731647663220,23.45357227,206.28,206.21,16.9728]
[1731647663938,23.45357227,206.27,206.21,16.9728]
[1731647664931,23.45357227,206.28,206.21,40.42637227]
[1731647665236,23.45357227,206.29,206.22,23.45357227]
[1731647665922,23.45357227,206.31,206.23,23.45357227]
[1731647666117,23.45357227,206.31,206.24,40.42397227]
[1731647666320,23.57906227,206.32,206.25,23.45357227]
[1731647666912,23.57906227,206.32,206.26,23.45357227]
[1731647666913,0.12549,206.32,206.26,23.45357227]
[1731647667113,0.12549,206.32,206.28,23.45357227]
[1731647667723,0.12549,206.32,206.3,23.45357227]
[1731647667932,0.12549,206.32,206.31,23.45357227]
[1731647668118,0.12549,206.32,206.31,28.30057227]
[1731647669231,0.12549,206.32,206.3,12.1181]
[1731647669541,23.45357227,206.31,206.24,40.42347227]
[1731647669917,0.12549,206.32,206.25,23.57906227]
[1731647670137,23.45357227,206.31,206.24,35.57497227]
[1731647670316,0.12549,206.32,206.24,16.9699]
[1731647670317,23.45357227,206.3,206.24,16.9699]
[1731647670516,23.45357227,206.31,206.24,40.42347227]
[1731647670819,23.45357227,206.3,206.24,16.9699]
[1731647671022,23.45357227,206.31,206.24,40.42347227]
[1731647671522,23.45357227,206.3,206.24,16.9699]
[1731647671745,23.45357227,206.26,206.22,15.4273]
[1731647672066,23.45357227,206.26,206.12,0.1]
[1731647672067,23.776884,206.22,206.14,12.1274]
[1731647672246,23.776884,206.22,206.12,16.214]
[1731647672247,23.776884,206.2,206.12,16.214]
[1731647672537,4.8494,206.21,206.12,21.0653]
[1731647672716,4.8494,206.21,206.12,16.214]
[1731647673538,23.45357227,206.18,206.12,16.214]
[1731647673923,23.45357227,206.17,206.12,16.214]
[1731647674120,23.45357227,206.17,206.12,21.0654]
[1731647675441,23.45357227,206.17,206.1,23.45357227]
[1731647675627,23.45357227,206.18,206.11,23.45357227]
[1731647675942,23.45357227,206.19,206.12,23.45357227]
[1731647676724,23.45357227,206.19,206.12,28.30487227]
[1731647676929,23.45357227,206.26,206.18,23.45357227]
[1731647677227,23.45357227,206.27,206.2,23.45357227]
[1731647677533,23.45357227,206.28,206.21,23.45357227]
[1731647678336,28.30107227,206.29,206.21,23.45357227]
[1731647678641,23.45357227,206.29,206.21,28.30287227]
[1731647678828,28.30117227,206.29,206.21,40.42637227]
[1731647679151,23.45357227,206.28,206.21,40.42637227]
[1731647679730,23.45357227,206.28,206.21,12.1235]
[1731647679936,23.45357227,206.27,206.21,12.1235]
[1731647680419,23.45357227,206.27,206.19,23.45357227]
[1731647680626,4.8476,206.29,206.17,23.45357227]
[1731647680627,23.45357227,206.24,206.17,23.45357227]
[1731647681530,23.45357227,206.28,206.2,23.45357227]
[1731647681728,23.45357227,206.26,206.2,4.8496]
[1731647682153,23.45357227,206.27,206.2,28.30317227]
[1731647683251,23.45357227,206.24,206.18,4.85]
[1731647683452,23.45357227,206.25,206.18,28.30357227]
[1731647683657,23.45357227,206.26,206.18,28.30357227]
[1731647683948,23.45357227,206.26,206.19,23.45357227]
[1731647684153,28.30187227,206.26,206.18,28.30357227]
[1731647684340,0.12549,206.32,206.18,28.30357227]
[1731647684341,23.45357227,206.27,206.19,23.45357227]
[1731647684648,23.45357227,206.26,206.19,23.45357227]
[1731647684955,23.45357227,206.25,206.18,40.42887227]
[1731647685126,23.45357227,206.26,206.18,40.42887227]
[1731647685445,23.45357227,206.26,206.19,23.45357227]
[1731647686544,23.45357227,206.26,206.19,28.30327227]
[1731647686746,23.45357227,206.26,206.19,4.8497]
[1731647686922,28.30187227,206.26,206.19,4.8497]
[1731647687348,23.45357227,206.25,206.19,4.8497]
[1731647687749,23.45357227,206.25,206.18,12.1253]
[1731647687941,23.45357227,206.24,206.18,12.1253]
[1731647688133,23.45357227,206.25,206.18,16.9754]
[1731647688848,23.45357227,206.25,206.18,35.57887227]
[1731647690837,23.45357227,206.27,206.2,23.45357227]
[1731647691042,23.45357227,206.27,206.2,28.30317227]
[1731647691650,28.30167227,206.27,206.2,28.30317227]
[1731647692254,23.45357227,206.26,206.2,4.8496]
[1731647692838,23.45357227,206.27,206.2,4.8496]
[1731647693454,23.45357227,206.29,206.21,23.45357227]
[1731647693750,23.45357227,206.29,206.22,23.45357227]
[1731647694243,23.45357227,206.28,206.21,23.45357227]
[1731647695036,23.45357227,206.28,206.22,4.8491]
[1731647695443,23.45357227,206.28,206.21,40.42627227]
[1731647698732,23.45357227,206.29,206.21,40.42627227]
[1731647700460,23.45357227,206.24,206.17,12.1258]
[1731647700748,14.7276844,206.2,206.15,21.2243]
[1731647700955,14.7276844,206.22,206.15,21.2243]
[1731647701138,23.776884,206.26,206.15,21.2243]
[1731647701650,14.7276844,206.28,206.21,14.7276844]
[1731647701845,14.7276844,206.3,206.23,14.7276844]
[1731647702157,0.12549,206.33,206.28,14.7276844]
[1731647702336,0.12549,206.33,206.3,14.7276844]
[1731647702538,0.12549,206.33,206.22,0.12549]
[1731647702736,4.97239,206.32,206.22,0.12549]
[1731647702937,4.97239,206.32,206.23,4.8489]
[1731647703159,14.7276844,206.28,206.22,12.24809]
[1731647703339,14.7276844,206.27,206.22,0.12549]
[1731647703544,14.7276844,206.29,206.22,14.8531744]
[1731647703860,4.97239,206.32,206.28,14.7276844]
[1731647703861,0.12549,206.32,206.28,14.7276844]
[1731647704061,14.8531744,206.32,206.22,41.34319]
[1731647704270,14.7276844,206.29,206.22,56.0708744]
[1731647704635,14.7276844,206.3,206.23,14.7276844]
[1731647704856,14.7276844,206.29,206.22,56.0708744]
[1731647705069,14.7276844,206.25,206.22,0.12549]
[1731647705236,14.7276844,206.23,206.22,0.12549]
[1731647705738,14.7276844,206.25,206.22,0.12549]
[1731647705944,14.7276844,206.29,206.22,26.9760744]
[1731647706142,14.7276844,206.3,206.23,14.7276844]
[1731647706560,19.7000744,206.32,206.25,14.7276844]
[1731647706768,0.12549,206.32,206.28,23.53121899]
[1731647706967,0.12549,206.32,206.29,23.53121899]
[1731647707267,0.12549,206.32,206.31,23.53121899]
[1731647707475,0.12549,206.32,206.29,12.1188]
[1731647707476,0.12549,206.32,206.3,23.53121899]
[1731647707649,0.12549,206.32,206.29,12.1188]
[1731647708362,0.12549,206.32,206.31,23.53121899]
[1731647708674,0.12549,206.32,206.3,23.53121899]
[1731647708866,0.12549,206.32,206.29,12.1188]
[1731647709064,4.97239,206.32,206.26,16.6131]
[1731647709260,4.97239,206.32,206.22,0.12549]
[1731647709617,23.776884,206.31,206.22,0.12549]
[1731647709749,23.776884,206.31,206.22,17.09739]
[1731647709956,23.776884,206.31,206.22,0.12549]
[1731647710270,23.53121899,206.27,206.22,0.12549]
[1731647711457,23.776884,206.27,206.22,0.12549]
[1731647712059,47.30810299,206.27,206.22,0.12549]
[1731647712383,52.15610299,206.27,206.22,0.12549]
[1731647713055,47.30810299,206.25,206.22,0.12549]
[1731647713877,23.776884,206.25,206.22,0.12549]
[1731647714051,23.776884,206.26,206.22,0.12549]
[1731647714256,23.53121899,206.23,206.22,0.12549]
[1731647714557,47.30810299,206.23,206.22,0.12549]
[1731647715952,23.776884,206.23,206.22,0.12549]
[1731647716652,47.30810299,206.23,206.22,0.12549]
[1731647719989,28.38001899,206.24,206.22,0.12549]
[1731647720150,6.3155,206.26,206.22,0.12549]
[1731647720355,23.85042528,206.32,206.22,0.12549]
[1731647720356,23.53121899,206.29,206.22,28.50570899]
[1731647720659,23.53121899,206.3,206.23,23.53121899]
[1731647720857,23.53121899,206.28,206.22,0.12549]
[1731647721367,23.53121899,206.29,206.22,23.65670899]
[1731647721681,23.53121899,206.28,206.22,0.12549]
[1731647722172,52.15630299,206.26,206.22,0.12549]
[1731647722355,23.53121899,206.24,206.22,0.12549]
[1731647722670,47.30810299,206.23,206.22,0.12549]
[1731647722870,23.53121899,206.24,206.22,0.12549]
[1731647723078,23.53121899,206.25,206.22,0.12549]
[1731647723575,4.8482,206.26,206.22,0.12549]
[1731647723576,47.30810299,206.23,206.22,0.12549]
[1731647724461,52.15700299,206.23,206.22,0.12549]
[1731647725479,23.53121899,206.28,206.22,0.12549]
[1731647725662,28.37891899,206.29,206.22,0.12549]
[1731647726454,23.53121899,206.26,206.22,0.12549]
[1731647726658,23.53121899,206.25,206.22,0.12549]
[1731647726956,47.30810299,206.23,206.22,0.12549]
[1731647728267,23.776884,206.23,206.22,0.12549]
[1731647728957,38.50007914,206.23,206.22,0.12549]
[1731647730463,60.52297914,206.23,206.22,0.12549]
[1731647730679,60.52297914,206.23,206.06,6.2149]
[1731647730680,23.776884,206.21,206.06,6.2149]
[1731647730870,23.58383333,206.12,206.06,11.0678]
[1731647731057,23.58383333,206.13,206.06,34.65163333]
[1731647732063,23.58383333,206.1,206.06,12.1323]
[1731647732786,23.58383333,206.09,206.03,4.8535]
[1731647732978,23.58383333,206.13,206.05,23.58383333]
[1731647733275,23.58383333,206.14,206.07,23.58383333]
[1731647733462,23.58383333,206.13,206.06,23.58383333]
[1731647733664,23.58383333,206.12,206.06,0.12549]
[1731647734364,23.58383333,206.1,206.06,12.1323]
[1731647734679,47.36071733,206.11,206.04,23.58383333]
[1731647734976,47.36071733,206.11,206.04,28.43703333]
[1731647735183,23.58383333,206.13,206.06,23.58383333]
[1731647735379,23.58383333,206.14,206.07,23.58383333]
[1731647735785,4.8501,206.18,206.05,0.12549]
[1731647735786,23.58383333,206.13,206.06,23.58383333]
[1731647735981,23.58383333,206.15,206.08,23.58383333]
[1731647736283,23.58383333,206.14,206.09,4.8522]
[1731647736461,23.58383333,206.13,206.09,4.8522]
[1731647736856,23.58383333,206.15,206.09,4.8522]
[1731647737058,23.58383333,206.17,206.09,28.43603333]
[1731647737272,23.58383333,206.21,206.15,23.58383333]
[1731647737484,23.58383333,206.21,206.1,15.20839]
[1731647737485,23.58383333,206.23,206.16,23.58383333]
[1731647737784,23.58383333,206.24,206.17,23.58383333]
[1731647737958,23.58383333,206.25,206.18,23.58383333]
[1731647738388,28.43233333,206.25,206.18,23.58383333]
[1731647738865,23.58383333,206.26,206.19,23.58383333]
[1731647739176,23.58383333,206.25,206.18,35.70913333]
[1731647739384,23.58383333,206.26,206.19,23.58383333]
[1731647739757,23.58383333,206.24,206.18,12.1253]
[1731647739960,23.58383333,206.26,206.19,23.58383333]
[1731647740176,23.58383333,206.25,206.18,12.1253]
[1731647740962,23.58383333,206.23,206.16,23.58383333]
[1731647741172,23.776884,206.19,206.11,4.8517]
[1731647741501,23.58383333,206.13,206.1,15.0829]
[1731647741965,23.58383333,206.14,206.1,15.0829]
[1731647742174,23.58383333,206.13,206.07,16.9838]
[1731647743770,23.58383333,206.09,206.02,16.988]
[1731647744087,23.58383333,206.13,206.06,23.58383333]
[1731647744380,23.58383333,206.16,206.07,0.12549]
[1731647744680,18.5038,206.22,206.07,0.12549]
[1731647744681,23.776884,206.2,206.07,0.12549]
[1731647745069,23.776884,206.21,206.07,0.12549]
[1731647745266,28.626284,206.21,206.07,12.1314]
[1731647745464,40.749784,206.21,206.07,16.9841]
[1731647745673,23.58383333,206.14,206.07,40.56793333]
[1731647746480,23.58383333,206.13,206.07,16.9841]
[1731647746984,23.58383333,206.14,206.07,16.9841]
[1731647747381,23.58383333,206.11,206.06,15.3398]
[1731647747590,23.58383333,206.07,206.02,12.1343]
[1731647747889,23.58383333,206.07,206.02,16.9881]
[1731647748264,23.58383333,206.06,206.01,15.0287]
[1731647748466,23.58383333,206.06,205.94,0.1]
[1731647748467,23.58383333,206.02,205.97,12.1371]
[1731647748778,23.58383333,206.03,205.97,16.9921]
[1731647749292,23.58383333,206.06,205.99,23.58383333]
[1731647749464,35.71063333,206.16,205.97,16.9921]
[1731647749465,23.58383333,206.13,206.05,23.58383333]
[1731647749661,23.58383333,206.13,206.0,0.1]
[1731647749662,11.09,206.16,206.0,0.2]
[1731647749863,23.58383333,206.12,206.0,0.1]
[1731647750288,23.58383333,206.13,206.06,23.58383333]
[1731647750494,28.43453333,206.16,206.09,23.58383333]
[1731647751087,23.58383333,206.16,206.09,23.58383333]
[1731647751478,28.43443333,206.16,206.09,23.58383333]
[1731647751877,23.58383333,206.14,206.06,23.70932333]
[1731647752092,47.36071733,206.12,206.05,30.24023333]
[1731647752394,47.36071733,206.12,206.03,23.58383333]
[1731647752395,23.58383333,206.1,206.03,23.58383333]
[1731647752685,23.58383333,206.09,206.01,40.57323333]
[1731647752984,23.58383333,206.1,206.03,23.58383333]
[1731647754169,23.58383333,206.1,206.03,4.8536]
[1731647754365,23.58383333,206.06,206.01,12.1353]
[1731647754579,23.58383333,206.04,205.97,23.58383333]
[1731647754893,23.58383333,206.03,205.97,0.12549]
[1731647755089,23.58383333,206.04,205.97,23.70932333]
[1731647755684,23.58383333,206.05,205.98,23.58383333]
[1731647755889,23.58383333,206.05,205.98,28.43853333]
[1731647756086,4.853,206.06,205.96,12.1378]
[1731647756087,23.58383333,206.01,205.96,12.1378]
[1731647756280,4.853,206.06,205.96,12.1378]
[1731647756281,23.58383333,206.03,205.96,12.1378]
[1731647756585,23.58383333,206.04,205.97,23.58383333]
[1731647756789,23.58383333,206.02,205.96,12.1378]
[1731647756993,23.58383333,206.0,205.96,12.1378]
[1731647757282,23.58383333,205.98,205.93,0.12549]
[1731647757862,23.58383333,206.0,205.93,23.58383333]
[1731647758066,23.58383333,205.99,205.94,12.1394]
[1731647758370,4.8524,206.08,205.89,24.3843]
[1731647758371,23.58383333,205.96,205.9,4.8566]
[1731647759284,23.58383333,205.93,205.89,12.142]
[1731647759482,23.58383333,205.92,205.86,4.8575]
[1731647759785,23.58383333,205.9,205.84,33.0526]
[1731647760175,23.58383333,205.88,205.84,28.1947]
[1731647760379,23.58383333,205.89,205.84,28.1947]
[1731647760575,23.58383333,205.89,205.84,33.0528]
[1731647760886,23.58383333,205.9,205.84,33.0528]
[1731647761303,23.58383333,205.93,205.85,23.70932333]
[1731647761466,47.36071733,205.9,205.84,28.1947]
[1731647761793,4.855,205.97,205.8,4.8589]
[1731647761794,23.58383333,205.86,205.8,4.8589]
[1731647761995,0.1,205.96,205.79,12.148]
[1731647761996,0.1,205.94,205.79,12.148]
[1731647762174,0.1,205.91,205.74,17.0116]
[1731647762373,23.776884,205.9,205.74,17.0116]
[1731647762599,23.776884,205.88,205.74,17.0116]
[1731647763186,23.776884,205.85,205.79,28.44293333]
[1731647763694,47.36071733,205.85,205.78,23.58383333]
[1731647764769,23.58383333,205.82,205.75,40.59463333]
[1731647764973,23.776884,205.82,205.75,40.59463333]
[1731647765174,23.58383333,205.81,205.75,12.1506]
[1731647765477,23.58383333,205.83,205.76,23.58383333]
[1731647766869,23.58383333,205.78,205.75,12.1506]
[1731647767073,23.58383333,205.77,205.73,0.4887364]